[Event "Charlotte Summer IM C 2022"]
[Site "Charlotte"]
[Date "2022.07.25"]
[Round "2.1"]
[White "Huston, Gus"]
[Black "Girones Barrios, Yans Richard"]
[Result "1/2-1/2"]
[ECO "C46"]
[WhiteElo "2282"]
[BlackElo "2412"]
[Annotator "TA"]
[PlyCount "93"]
[EventDate "2022.07.24"]
[EventType "tourn"]
[EventCountry "USA"]
[SourceTitle "playchess.com"]
[Source "ChessBase"]
[SourceQuality "1"]
[TimeControl "5400+30"]

{[%evp 9,93,35,39,-35,-35,-43,-38,-50,-38,-33,-43,-41,-31,-85,-84,-106,-125,-125,-123,-119,-111,-145,-143,-134,-119,-164,-152,-150,-146,-150,-133,-143,-123,-111,-131,-150,-148,-155,-150,-180,-172,-195,-195,-195,-47,-45,-44,-66,-36,-102,0,0,0,0,0,-54,-38,-101,-30,-71,-53,-91,-85,-158,-142,-139,-79,-79,-79,-79,-38,-96,0,0,0,0,25,29,42,40,37,0,0,0,0,8]} 1. e4 {[%emt 0:01:53]} e5 {[%emt 0:00:10]} 2. Nf3 {[%emt 0:00:14]} Nc6 {[%emt 1:31:20]} 3. Nc3 {[%emt 0:00:44]} Nge7 {[%emt 0:00:00]} 4. Bc4 {[%emt 0:01:29]} Ng6 {[%emt 0:00:00] [#]} 5. Nd5 $146 {[%emt 0:10:00]} ({Predecessor:} 5. d4 Bb4 6. Bg5 Be7 7. Bxe7 Qxe7 8. Nd5 Qd8 9. h4 exd4 10. Nxd4 Nge5 11. Bb3 {0-1 (30) Postnikov,D (2360)-Jaracz,P (2459) Chess.com INT 2022}) 5... Na5 {[%emt 0:00:00]} 6. d3 {[%emt 0:01:08] C46: 3 Nc3: Unusual Black 3rd moves.} (6. Be2 $14) 6... c6 $15 {[%emt 0:00:00][%cal Bc7c6,Bc6d5,Bd5d4][%mdl 32]} 7. Ne3 {[%emt 0:01:17]} d5 {[%emt 0:00:00]} 8. exd5 {[%emt 0:01:19] Black is slightly better.} b5 {[%emt 0:00:00]} 9. Bb3 {[%emt 0:01:11]} Nxb3 {[%emt 0:00:00]} 10. axb3 {[%emt 0:00:08]} cxd5 {[%emt 0:00:00]} 11. c4 {[%emt 0:09:08]} (11. c3 $15) 11... d4 $36 {[%emt 0:00:00][%mdl 2048] Black is really pushing.} 12. Nd5 {[%emt 0:01:18]} Bb7 {[%emt 0:00:00]} 13. h4 {[%emt 0:10:26]} Bxd5 {[%emt 0:00:00]} 14. cxd5 {[%emt 0:00:03]} Qxd5 {[%emt 0:00:00]} 15. h5 {[%emt 0:01:56]} Bb4+ {[%emt 0:00:00]} 16. Kf1 {[%emt 0:01:07]} Ne7 {[%emt 0:00:00]} 17. h6 {[%emt 0:02:06]} g6 {[%emt 0:00:00]} 18. Bg5 {[%emt 0:02:43]} Qd6 {[%emt 0:00:00] Inhibits Bf6.} 19. Bxe7 {[%emt 0:06:27]} Qxe7 {[%emt 0:00:00]} ({Inferior is} 19... Kxe7 20. Qe2 f6 21. g4 $15) 20. Qe2 {[%emt 0:00:58]} f6 {[%emt 0:00:00]} 21. Qe4 {[%emt 0:02:09]} Rc8 {[%emt 0:00:00]} 22. g3 {[%emt 0:02:47]} a5 {[%emt 0:00:00]} 23. Kg2 {[%emt 0:03:09]} O-O {[%emt 0:00:00][%cal Bh8f8,Bf8f5,Bf5h5][%mdl 32]} 24. Rac1 {[%emt 0:04:09]} Qd7 {[%emt 0:00:00] Inhibits Qd5+.} 25. g4 {[%emt 0:08:45]} Rce8 {[%emt 0:00:00]} 26. Rc2 {[%emt 0:06:31]} f5 {[%emt 0:00:00]} (26... Re6 $19 {Strongly threatening ...f5.} 27. Rh3 Re7) 27. gxf5 $1 $15 {[%emt 0:00:24]} Rxf5 {[%emt 0:00:00]} 28. Rhc1 $1 {[%emt 0:09:13] Rc7 is the strong threat.} Rh5 {[%emt 0:00:00] ( -> ...Qh3+)} 29. Kf1 {[%emt 0:00:01]} ({White should try} 29. Rh1 $1 $15 Rf5 30. Rh3) 29... Rf8 {[%emt 0:01:56]} ({Black should play} 29... Bf8 $17 30. Rc7 Qf5 31. Qd5+ Qe6 32. Qxe6+ Rxe6) 30. Rc7 $1 $11 {[%emt 0:05:22]} Qf5 {[%emt 0:02:35]} (30... Rh1+ $2 31. Ke2 Re1+ 32. Nxe1 $18) 31. Qxf5 {[%emt 0:03:04] The board is on fire.} Rfxf5 {[%emt 0:01:38]} (31... Rhxf5 $2 32. Rg7+ Kh8 33. Rcc7 $1 $18) 32. Kg2 {[%emt 0:01:13]} (32. Rg7+ $11 Kh8 33. Rc8+ Rf8 34. Rxf8+ Bxf8 35. Ra7) 32... Rxh6 {[%emt 0:01:38]} 33. R1c6 {[%emt 0:00:41]} (33. Rb7 $15) 33... Bf8 {[%emt 0:02:02]} (33... Rhh5 $17 {White must now prevent ...Rf4.} 34. Rb6 Rf7 35. Rxf7 Kxf7 36. Rxb5 Ke6) 34. Re6 {[%emt 0:01:02]} Rhh5 {[%emt 0:02:04]} 35. Nd2 {[%emt 0:01:34]} Rf7 {[%emt 0:01:32]} 36. Rc8 {[%emt 0:00:12]} (36. Rxf7 $142 Kxf7 37. Rb6) 36... Rg5+ {[%emt 0:01:35]} 37. Kf1 {[%emt 0:00:02]} Rgf5 {[%emt 0:00:08]} (37... Rg3 $142 $1 {[%cal Rg3d3]} 38. Ke2 Rg1 39. Rxe5 Kg7) 38. Ne4 $17 {[%emt 0:00:03]} Kg7 {[%emt 0:02:52]} 39. Rb6 {[%emt 0:00:37]} b4 {[%emt 0:00:00]} 40. Rb5 {[%emt 0:00:34] [#]} (40. Ra6 $15) 40... h5 {[%emt 0:00:00]} (40... Ra7 $1 $17) 41. Rc6 $11 {[%emt 0:00:54]} Rf4 {[%emt 0:00:34]} 42. Rxe5 {[%emt 0:00:11]} h4 {[%emt 0:00:02]} 43. Rg5 {[%emt 0:00:13]} R7f5 {[%emt 0:00:53][%cal Of4f2]} 44. Rgxg6+ {[%emt 0:00:21]} Kf7 {[%emt 0:00:00]} 45. Kg2 Be7 $1 {[%emt 0:02:01]} 46. Rh6 {[%emt 0:04:44] And now Rh7+ would win.} Kg7 {[%emt 0:00:00] Prevents Rh7+.} 47. Rcg6+ {[%emt 0:00:00] Weighted Error Value: White=0.18 (very precise) /Black=0.19 (very precise)} 1/2-1/2

[Event "Charlotte Summer IM C 2022"]
[Site "Charlotte"]
[Date "2022.07.25"]
[Round "2.2"]
[White "Arjun, Vishnuvardhan"]
[Black "Adewumi, Tanitoluwa"]
[Result "0-1"]
[ECO "A25"]
[WhiteElo "2273"]
[BlackElo "2309"]
[Annotator "TA"]
[PlyCount "122"]
[EventDate "2022.07.24"]
[EventType "tourn"]
[EventCountry "USA"]
[SourceTitle "playchess.com"]
[Source "ChessBase"]
[SourceQuality "1"]
[TimeControl "5400+30"]

{[%evp 13,122,16,14,-16,-20,-20,1,-25,-25,-25,-28,-37,19,-21,-20,-33,-20,-21,-23,-33,-25,-26,-10,-55,-21,-30,2,-37,-38,-33,-29,-30,-34,-58,-60,-143,-91,-87,-74,-87,-68,-60,-63,-59,-59,-54,-50,-62,-56,-59,-50,-104,-108,-81,-72,-84,-78,-74,-39,-79,-52,-72,-79,-162,-172,-180,-158,-159,-133,-417,-412,-409,-397,-397,-393,-390,-394,-380,-385,-381,-377,-328,-252,-304,-210,-287,-207,-347,-334,-350,-196,-406,-301,-491,-379,-505,-484,-495,-481,-456,-441,-809,-802,-1201,-1193,-1548,-1710,-29987,-29980,-29993,-29994]} 1. c4 {[%emt 0:06:12]} e5 {[%emt 0:00:06]} 2. g3 {[%emt 0:00:23]} Nc6 {[%emt 0:00:17]} 3. Bg2 {[%emt 0:00:04]} g6 {[%emt 0:00:25]} 4. Nc3 {[%emt 0:00:43]} Bg7 {[%emt 0:00:13]} 5. e3 {[%emt 0:00:26]} d6 {[%emt 0:00:10]} 6. Nge2 {[%emt 0:00:09]} Nf6 {[%emt 0:00:06]} 7. O-O {[%emt 0:05:37]} O-O {[%emt 0:00:13]} 8. h3 {[%emt 0:00:51] A25: English Opening vs King's Indian with ...Nc6 but without early d3.} Be6 {[%emt 0:00:27]} 9. Nd5 {[%emt 0:00:03]} Ne7 {[%emt 0:00:22][%cal Re7d5] [#]} 10. Nec3 $146 {[%emt 0:02:35] The position is equal.} ({Predecessor:} 10. Nxe7+ Qxe7 11. b3 Qd7 12. Kh2 d5 13. d4 exd4 14. Nxd4 dxc4 15. Ba3 Rfd8 16. Bxb7 Bxh3 17. Bxa8 Bxf1 18. Qxf1 Rxa8 19. Qxc4 {0-1 (26) Kosten,A (2402)-Fitzsimons,D (2317) Dublin 2020}) 10... c6 {[%emt 0:00:24]} 11. Nxf6+ {[%emt 0:00:15]} Bxf6 {[%emt 0:00:07]} 12. d3 {[%emt 0:01:53]} Qd7 {[%emt 0:00:09]} ({Black should play} 12... Bg7 $15) 13. Kh2 {[%emt 0:00:10]} (13. Ne4 $5 {[%cal Re4f6]} Bg7 14. Ng5 $11) 13... d5 {[%emt 0:00:04]} 14. Qe2 {[%emt 0:00:14]} Rad8 {[%emt 0:00:07]} 15. Rd1 {[%emt 0:04:20]} Bg7 {[%emt 0:01:18]} 16. b3 {[%emt 0:01:29]} f5 {[%emt 0:01:05][%cal Of5f4]} 17. Bb2 {[%emt 0:00:49]} Rf7 {[%emt 0:00:22]} 18. Na4 {[%emt 0:22:12]} b6 {[%emt 0:01:38]} 19. f4 {[%emt 0:01:31]} Qc7 {[%emt 0:02:03]} (19... g5 $5) 20. Bxe5 {[%emt 0:03:14]} Bxe5 {[%emt 0:00:02]} 21. fxe5 {[%emt 0:00:01]} Qxe5 {[%emt 0:00:19][%cal Of5f4]} 22. Qb2 {[%emt 0:04:56]} Qd6 {[%emt 0:01:32]} ({Don't play} 22... Qxe3 23. Re1 Qg5 24. Rxe6 $16) 23. c5 {[%emt 0:00:54]} bxc5 {[%emt 0:01:17]} 24. Qa3 {[%emt 0:03:11]} (24. Rac1 $15) 24... d4 {[%emt 0:00:24]} ({Better is} 24... g5 {Strongly threatening ...h5.} 25. Qxc5 Qc7) 25. Qxc5 $17 {[%emt 0:01:19]} dxe3 {[%emt 0:00:10]} 26. Re1 {[%emt 0:02:27]} f4 {[%emt 0:03:53]} ({Resist} 26... Qxd3 27. Rxe3 Qd6 28. Rae1 $11) 27. Qxd6 {[%emt 0:01:15]} Rxd6 {[%emt 0:00:07]} 28. gxf4 {[%emt 0:00:20]} Rxf4 {[%emt 0:01:13]} 29. Rxe3 {[%emt 0:02:34]} Nf5 {[%emt 0:00:24]} 30. Re5 {[%emt 0:02:02]} Rf2 {[%emt 0:00:38]} 31. Kg1 {[%emt 0:00:31]} Rc2 {[%emt 0:01:02][%cal Od6d3]} 32. Nc5 {[%emt 0:00:24]} (32. Rf1 $1 $15) 32... Bd5 $36 {[%emt 0:05:13][%mdl 2048] White is under strong pressure. Black is more active.} 33. Bxd5+ {[%emt 0:08:20]} cxd5 {[%emt 0:04:22]} 34. b4 {[%emt 0:00:28]} Kg7 {[%emt 0:02:58]} 35. a3 {[%emt 0:26:08]} h5 {[%emt 0:04:34]} 36. Rf1 {[%emt 0:00:00]} Rc3 {[%emt 0:01:35]} 37. a4 {[%emt 0:00:00]} a5 {[%emt 0:01:29]} 38. Nb7 {[%emt 0:00:00]} ({Avoid the trap} 38. Ne6+ $2 Kf6 39. Rfe1 axb4 $19) (38. Re6 $17 {might work better.} axb4 39. Rxd6 Nxd6 40. Ne6+ Kh7 41. Rb1) 38... Rb6 $19 {[%emt 0:01:16]} 39. Nxa5 {[%emt 0:00:00]} Rxb4 {[%emt 0:00:41]} 40. Rxd5 {[%emt 0:00:00]} Rxa4 {[%emt 0:00:15]} 41. Rf2 $2 {[%emt 0:00:00][%mdl 8192] Now White is beyond hope.} (41. Nc4 $17) 41... Ra1+ {[%emt 0:01:12]} 42. Kh2 {[%emt 0:00:00]} Rcc1 {[%emt 0:00:34] [#] And now ...Rh1+ would win.} 43. Rd7+ {[%emt 0:00:00]} Kh6 {[%emt 0:01:28]} 44. Nc4 {[%emt 0:00:00]} Rh1+ {[%emt 0:00:18]} 45. Kg2 {[%emt 0:00:00]} Rag1+ {[%emt 0:01:15]} 46. Kf3 {[%emt 0:00:00]} Rxh3+ {[%emt 0:00:19]} 47. Kf4 {[%emt 0:00:00]} Rgg3 {[%emt 0:02:37]} 48. Rd2 {[%emt 0:00:00]} Rh4+ {[%emt 0:00:27]} 49. Ke5 {[%emt 0:00:00]} Kg5 {[%emt 0:00:15]} 50. Ke6 {[%emt 0:00:14]} (50. d4 $142) 50... Nd4+ {[%emt 0:01:26]} 51. Ke7 {[%emt 0:00:51]} Rf4 {[%emt 0:02:01] [#] aiming for ...h4.} 52. Rd5+ $2 {[%emt 0:00:41]} (52. Nd6 Kh6 53. Ne4 Nf5+ 54. Ke6) 52... Nf5+ {[%emt 0:00:12]} 53. Kf7 $2 {[%emt 0:00:41]} (53. Ke6 {was called for.}) 53... Kh6 {[%emt 0:01:02]} 54. Ke8 {[%emt 0:04:21]} h4 {[%emt 0:00:30][%cal Bh5h4,Bh4h3][%mdl 32]} 55. Ne5 {[%emt 0:01:02]} h3 {[%emt 0:01:30] Threatens to win with ...Rg2.} 56. Rh2 {[%emt 0:02:40]} Rh4 {[%emt 0:00:54]} 57. Nf7+ {[%emt 0:00:00]} (57. Kf7 $142 Kg5 58. Rc5) 57... Kg7 {[%emt 0:00:53] White must now prevent ...Re3+.} 58. Rd7 {[%emt 0:00:00]} Kf6 {[%emt 0:00:46] ...Rg2 is the strong threat.} 59. Kf8 Rg2 {[%emt 0:59:21]} 60. Rh1 {[%emt 0:00:58]} Ra2 {[%emt 0:00:30]} 61. Rd8 {[%emt 0:00:47]} Ra7 {[%emt 0:00:00] Weighted Error Value: White=0.66/Black=0.16 (very precise)} 0-1

[Event "Charlotte Summer IM C 2022"]
[Site "Charlotte"]
[Date "2022.07.25"]
[Round "2.3"]
[White "Rodriguez Rivera, Pedro"]
[Black "Xie, Bryan"]
[Result "1/2-1/2"]
[ECO "A47"]
[WhiteElo "2192"]
[BlackElo "2191"]
[Annotator "TA"]
[PlyCount "87"]
[EventDate "2022.07.24"]
[EventType "tourn"]
[EventCountry "USA"]
[SourceTitle "playchess.com"]
[Source "ChessBase"]
[SourceQuality "1"]
[TimeControl "5400+30"]

{[%evp 13,87,0,3,-5,0,7,11,8,16,-17,-14,-12,-15,-14,-6,-6,0,0,0,0,0,0,0,-6,-14,-8,-10,-18,-17,-17,-17,-23,-20,-24,0,0,0,0,0,0,0,0,0,0,0,0,0,0,0,0,0,0,0,0,0,0,0,0,0,0,0,0,0,0,0,0,0,-33,-26,-31,-14,-31,-8,-3,0,-24]} 1. d4 {[%emt 0:03:01]} Nf6 {[%emt 0:00:31]} 2. Nf3 {[%emt 0:00:27]} e6 {[%emt 0:01:26]} 3. e3 {[%emt 0:00:05]} b6 {[%emt 0:00:45]} 4. Bd3 {[%emt 0:00:02]} Bb7 {[%emt 0:00:03]} 5. Nbd2 {[%emt 0:00:11]} c5 {[%emt 0:05:08]} 6. O-O {[%emt 0:01:07]} Be7 {[%emt 0:03:59]} 7. c3 {[%emt 0:01:00]} Nc6 {[%emt 0:03:07]} 8. Ne5 {[%emt 0:05:54] A47: 1 d4 Nf6 2 Nf3 b6: Torre, London and Colle Systems.} O-O {[%emt 0:01:57]} 9. Qe2 {[%emt 0:05:10]} Qc7 {[%emt 0:06:48] [#]} 10. Nxc6 $146 {[%emt 0:01:04]} ({Predecessor:} 10. f4 g6 11. e4 cxd4 12. Nxc6 dxc6 13. cxd4 c5 14. dxc5 Qxc5+ 15. Kh1 Rfd8 16. e5 Nd5 17. Nb3 Qc8 18. Bd2 {0-1 (34) Dunn,A (2205)-Ward,C (2522) Catalan Bay 2004}) 10... dxc6 {[%emt 0:00:18]} 11. Ne4 {[%emt 0:02:25]} cxd4 {[%emt 0:03:24]} (11... Nxe4 {looks sharper.} 12. Bxe4 Rfd8 13. b3 cxd4 14. cxd4 a5) 12. exd4 {[%emt 0:04:21]} (12. Nxf6+ {is more complex.} Bxf6 13. exd4 c5 14. dxc5 bxc5 15. Be3) 12... c5 {[%emt 0:06:13]} 13. dxc5 {[%emt 0:01:59]} (13. Nxf6+ {is interesting.} Bxf6 14. dxc5 bxc5 15. Be3) 13... Nxe4 {[%emt 0:03:16]} (13... Bxc5 {leads to mate.} 14. Nxf6+ gxf6 15. Qg4+ Kh8 16. Qh4) (13... bxc5 {with more complications.} 14. Nxf6+ Bxf6 15. Be3 Rfd8) 14. Bxe4 {[%emt 0:00:09]} Bxc5 {[%emt 0:00:30]} 15. Bxb7 {[%emt 0:03:28]} Qxb7 {[%emt 0:00:02]} 16. Be3 {[%emt 0:00:27]} Qe4 {[%emt 0:01:22]} 17. Rfe1 {[%emt 0:01:32]} Bxe3 {[%emt 0:00:08]} 18. Qxe3 {[%emt 0:00:06]} Qxe3 {[%emt 0:00:14]} 19. Rxe3 $11 {[%emt 0:00:03][%mdl 4096] Endgame KRR-KRR} Rad8 {[%emt 0:00:18]} 20. Re2 {[%emt 0:00:21]} Rd3 {[%emt 0:01:00]} 21. f3 {[%emt 0:01:00]} Rfd8 {[%emt 0:00:18]} 22. Kf2 {[%emt 0:00:12]} Kf8 {[%emt 0:00:42]} 23. Rae1 {[%emt 0:00:12]} b5 {[%emt 0:03:16]} 24. Re5 {[%emt 0:00:23]} a6 {[%emt 0:00:33]} 25. R1e2 {[%emt 0:05:22]} Ke7 {[%emt 0:09:13]} 26. a4 {[%emt 1:03:29]} Rb8 {[%emt 0:02:50]} 27. axb5 {[%emt 0:00:00]} axb5 {[%emt 0:00:01]} 28. Rc2 {[%emt 0:00:00]} Kd6 {[%emt 0:04:58]} 29. Rg5 {[%emt 0:00:00]} g6 {[%emt 0:00:07]} 30. Ke2 {[%emt 0:00:00]} Rd5 {[%emt 0:00:01]} 31. Rxd5+ {[%emt 0:00:00]} exd5 {[%emt 0:02:06] KR-KR} 32. Rd2 {[%emt 0:00:00]} Kc5 {[%emt 0:00:25]} 33. Rd4 {[%emt 0:00:00]} Ra8 {[%emt 0:05:22]} 34. Ke3 {[%emt 0:00:00]} Ra2 {[%emt 0:03:59]} 35. Rd2 {[%emt 0:00:00] [#] Strongly threatening b4+.} Ra4 {[%emt 0:00:40]} 36. Kd3 {[%emt 0:00:00]} Ra1 {[%emt 0:05:40]} 37. Re2 {[%emt 0:00:00]} Rd1+ {[%emt 0:00:34]} 38. Kc2 {[%emt 0:00:00]} Rf1 {[%emt 0:00:29]} 39. Kb3 {[%emt 0:00:00]} h5 {[%emt 0:01:11]} 40. Re5 {[%emt 0:00:00]} Rf2 {[%emt 0:00:14]} 41. Rg5 {[%emt 0:00:00]} Kd6 {[%emt 0:03:13]} 42. h4 {[%emt 0:00:00]} Ke6 {[%emt 0:04:14]} 43. Ka3 {[%emt 0:00:00]} Kd6 {[%emt 0:03:34]} 44. Kb3 {[%emt 0:00:00] A balanced but interesting game.  Weighted Error Value: White=0.03 (flawless) /Black=0.03 (flawless)} 1/2-1/2

[Event "Charlotte Summer IM C 2022"]
[Site "Charlotte"]
[Date "2022.07.25"]
[Round "2.4"]
[White "Wen, Tommy"]
[Black "Luo, Terry"]
[Result "1/2-1/2"]
[ECO "C75"]
[WhiteElo "2040"]
[BlackElo "2204"]
[Annotator "TA"]
[PlyCount "80"]
[EventDate "2022.07.24"]
[EventType "tourn"]
[EventCountry "USA"]
[SourceTitle "playchess.com"]
[Source "ChessBase"]
[SourceQuality "1"]
[TimeControl "5400+30"]

{[%evp 16,80,42,36,44,50,48,39,52,39,81,87,89,34,34,17,26,28,29,18,22,-10,-4,-12,-12,-6,0,-6,0,0,0,0,0,0,0,-7,0,0,0,0,0,0,37,-5,-4,-43,-36,-25,0,0,0,0,0,0,0,-12,-12,-19,-19,-19,-8,-8,-8,-8,-9,-13,0]} 1. e4 {[%emt 0:01:37]} e5 {[%emt 0:00:09]} 2. Nf3 {[%emt 0:00:08]} Nc6 {[%emt 0:00:03]} 3. Bb5 {[%emt 0:00:06]} a6 {[%emt 0:00:03]} 4. Ba4 {[%emt 0:00:06]} Nge7 {[%emt 0:00:03]} 5. O-O {[%emt 0:00:18]} Ng6 {[%emt 0:00:04]} 6. c3 {[%emt 0:01:21]} d6 {[%emt 0:00:10]} 7. d4 {[%emt 0:04:19]} Bd7 {[%emt 0:00:20]} 8. Be3 {[%emt 0:03:23]} Be7 {[%emt 0:01:24]} 9. Nbd2 {[%emt 0:05:22]} h6 {[%emt 0:11:41] C75: Ruy Lopez: Deferred Steinitz: 5 c3 Bd7 6 d4 without ...g6.} 10. Re1 {[%emt 0:07:51]} Bg5 {[%emt 0:12:37]} 11. Nf1 {[%emt 0:00:35]} Qf6 {[%emt 0:11:19] White is slightly better.} 12. Qd2 {[%emt 0:13:00][%cal Rf3g5]} Nf4 {[%emt 0:04:46] [#]} 13. d5 $146 {[%emt 0:06:44]} ({Predecessor:} 13. Bxf4 Bxf4 14. Ne3 O-O-O 15. b4 Kb8 16. Qb2 Bxe3 17. Bxc6 Bxf2+ 18. Qxf2 Bxc6 19. d5 {1-0 (60) Bueno Perez,J (2063)-Ramos Galindo,L (2158) Santa Clara 2011}) 13... Nb8 {[%emt 0:00:54] [#]} 14. Bxd7+ {[%emt 0:01:23]} ({Reject} 14. Nxg5 hxg5 15. Bd1 Qh6 $11) (14. Bd1 $1 $16) 14... Nxd7 $14 {[%emt 0:00:01]} 15. Bxf4 {[%emt 0:13:26]} Bxf4 {[%emt 0:00:29]} 16. Qe2 {[%emt 0:00:45] aiming for g3.} h5 {[%emt 0:02:40]} 17. b4 {[%emt 0:04:38]} O-O {[%emt 0:02:07]} 18. c4 {[%emt 0:02:36]} a5 {[%emt 0:02:53]} 19. a3 {[%emt 0:00:49]} g6 {[%emt 0:00:16]} 20. N1d2 {[%emt 0:09:10]} Bxd2 {[%emt 0:05:27]} 21. Nxd2 {[%emt 0:00:37]} Ra7 {[%emt 0:02:24]} 22. Nb3 {[%emt 0:03:14]} axb4 {[%emt 0:00:26]} 23. axb4 {[%emt 0:00:02]} Rfa8 {[%emt 0:00:41]} 24. Rxa7 {[%emt 0:03:52]} Rxa7 {[%emt 0:00:01]} 25. c5 {[%emt 0:00:15]} Ra3 {[%emt 0:04:56]} 26. Qb2 {[%emt 0:04:06]} Ra4 {[%emt 0:00:17]} 27. Qc3 {[%emt 0:02:22]} Ra2 {[%emt 0:03:35]} 28. Rf1 {[%emt 0:00:05]} c6 {[%emt 0:06:04][%cal Bc7c6,Bc6d5][%mdl 32]} 29. cxd6 {[%emt 0:06:36]} Qxd6 {[%emt 0:00:21]} 30. Na5 {[%emt 0:00:14]} cxd5 {[%emt 0:04:34]} 31. Nxb7 {[%emt 0:00:08]} Qb8 {[%emt 0:04:50]} (31... Qa6 $5 {[%cal Ra6b7]} 32. Nd8 (32. Qc8+ Nf8 $17) 32... Qa8 $11) 32. Qc6 {[%emt 0:01:04] The position is equal.} Ra7 {[%emt 0:00:34][%cal Ba2a7,Ba7b7,Bb7b4,Bb4d4,Bd4d6][%mdl 32]} 33. Qxd7 {[%emt 0:00:20] [#] Threatens to win with Qd8+.} Rxb7 {[%emt 0:00:18]} 34. Qxd5 {[%emt 0:00:05]} Rxb4 $11 {[%emt 0:00:08][%mdl 4096] Endgame KQR-KQR} 35. h3 {[%emt 0:01:37]} Rd4 {[%emt 0:00:30]} 36. Qc6 {[%emt 0:00:05]} Kg7 {[%emt 0:01:47]} 37. Re1 {[%emt 0:02:20]} Qb4 {[%emt 0:00:08]} 38. Re3 {[%emt 0:00:36]} h4 {[%emt 0:01:17]} 39. Rf3 {[%emt 0:01:07] And now Qf6+ would win.} Qe7 {[%emt 0:04:29] Prevents Qf6+.} 40. Kh2 {[%emt 0:00:42]} Rd6 {[%emt 0:02:10] Weighted Error Value: White=0.07 (flawless) /Black=0.05 (flawless)} 1/2-1/2

[Event "Charlotte Summer IM C 2022"]
[Site "Charlotte"]
[Date "2022.07.25"]
[Round "2.5"]
[White "Venkat, Raghav"]
[Black "Rodrigue-Lemieux, Shawn"]
[Result "0-1"]
[ECO "B14"]
[WhiteElo "2227"]
[BlackElo "2366"]
[Annotator "TA"]
[PlyCount "76"]
[EventDate "2022.07.24"]
[EventType "tourn"]
[EventCountry "USA"]
[SourceTitle "playchess.com"]
[Source "ChessBase"]
[SourceQuality "1"]
[TimeControl "5400+30"]

{[%evp 16,76,22,12,5,6,0,-31,-20,-20,-20,-25,-8,-28,0,0,-4,-10,-8,-8,-3,-5,0,0,0,0,0,0,0,0,0,0,0,0,0,-87,-97,-122,-122,-122,-118,-126,-124,-260,-256,-251,-212,-244,-242,-262,-256,-292,-267,-334,-327,-308,-243,-525,-519,-1100,-1091,-954,-924]} 1. e4 {[%emt 0:09:29]} c6 {[%emt 0:00:08]} 2. d4 {[%emt 0:00:14]} d5 {[%emt 0:00:06]} 3. exd5 {[%emt 0:01:27]} cxd5 {[%emt 0:00:08]} 4. c4 {[%emt 0:00:04]} Nf6 {[%emt 0:00:10]} 5. Nc3 {[%emt 0:00:07]} e6 {[%emt 0:00:06]} 6. Nf3 {[%emt 0:00:05]} Bb4 {[%emt 0:00:14]} 7. cxd5 {[%emt 0:02:21]} Nxd5 {[%emt 0:00:08]} 8. Bd2 {[%emt 0:00:15]} Nc6 {[%emt 1:33:30]} 9. Bb5 {[%emt 1:20:58]} O-O {[%emt 0:00:30] B14: Caro-Kann: Panov-Botvinnik Attack with 5...e6 and 5...g6.} 10. Bxc6 {[%emt 0:00:00]} bxc6 {[%emt 0:00:00]} 11. O-O {[%emt 0:01:00]} Nxc3 {[%emt 0:01:00] [#] Black is slightly better.} 12. Bxc3 $146 {[%emt 0:00:30]} ({Predecessor:} 12. bxc3 Bd6 13. Ng5 h6 14. Ne4 Bxh2+ 15. Kxh2 Qh4+ 16. Kg1 Qxe4 17. Re1 Qf5 18. Re3 {0-1 (29) Bondarev,B (1923)-Bykova,A (2191) Sochi 2019}) 12... Bxc3 {[%emt 0:00:00]} 13. bxc3 {[%emt 0:00:30]} Qa5 {[%emt 0:01:00]} 14. Ne5 {[%emt 0:00:30]} c5 {[%emt 0:00:30]} 15. Qf3 {[%emt 0:00:00]} Ba6 {[%emt 0:00:30]} 16. Rfd1 {[%emt 0:01:00]} cxd4 {[%emt 0:00:00]} 17. cxd4 {[%emt 0:00:30]} Rac8 {[%emt 0:01:00]} 18. h3 {[%emt 0:00:30]} Rc2 {[%emt 0:00:00]} 19. Rdc1 {[%emt 0:00:30]} Rxc1+ {[%emt 0:00:00]} 20. Rxc1 {[%emt 0:00:00]} Qxa2 {[%emt 0:01:30]} 21. Qf4 {[%emt 0:01:00]} Bb5 {[%emt 0:00:30]} 22. Rc7 {[%emt 0:00:30]} Be8 {[%emt 0:00:30]} 23. Nc4 {[%emt 0:00:30]} Qb1+ {[%emt 0:00:00]} 24. Kh2 {[%emt 0:00:00]} Qb8 {[%emt 0:01:00]} 25. Qd6 {[%emt 0:01:00] Against Bc6} (25. d5 $11 exd5 26. Ne3) 25... Bb5 $36 {[%emt 0:00:30][%mdl 2048] Hoping for ...Bxc4. Black is in control.} 26. Ne5 {[%emt 0:00:30] [#]} Rc8 $1 {[%emt 0:00:00]} 27. Rxc8+ {[%emt 0:00:00]} Qxc8 {[%emt 0:00:00][%mdl 4096] Endgame KQB-KQN} 28. Qe7 {[%emt 0:00:00]} f6 {[%emt 0:00:00]} 29. Ng4 {[%emt 0:01:30] Now White is beyond hope.} (29. Qf7+ $17 Kh8 30. Ng4) 29... a5 $19 {[%emt 0:00:00][%cal Ba7a5,Ba5a4,Ba4a3,Ba3a2][%mdl 32]} 30. Ne3 {[%emt 0:00:30]} Bc6 {[%emt 0:00:00] Prevents d5.} 31. Qc5 {[%emt 0:00:00]} a4 {[%emt 0:03:00]} 32. Kg1 {[%emt 0:00:00]} Qa8 {[%emt 0:00:00]} 33. Qa3 {[%emt 0:01:30]} Bd5 {[%emt 0:01:00]} 34. Kf1 {[%emt 0:00:30]} Bb3 {[%emt 0:00:00] And now ...Qf8 would win.} 35. Ke2 {[%emt 0:00:30]} Qf8 {[%emt 0:01:00]} 36. Qc1 {[%emt 0:00:00]} (36. Qxf8+ Kxf8 37. Kd3) 36... a3 {[%emt 0:00:00] Black is clearly winning.} 37. Nf1 {[%emt 0:01:00]} (37. Nc2 $142 Qc8 38. Kd2) 37... a2 {[%emt 0:00:00] [#] ...Qa8 is the strong threat.} 38. Nd2 {[%emt 0:00:00]} Bd5 {[%emt 0:00:00] Weighted Error Value: White=0.43/Black=0.06 (flawless)} 0-1